bitfinex/quotes_SOLUSD_20260213
["timestamp","ask_amount","ask_price","bid_price","bid_amount"]
[1770945300395,0.87110893,78.689,78.666,0.89139074]
[1770945300688,40.4,78.688,78.666,0.89139074]
[1770945300893,50.7861482,78.762,78.671,0.82306001]
[1770945300894,3.97876258,78.71,78.671,0.82306001]
[1770945301091,40.42,78.709,78.681,0.82306001]
[1770945301481,0.820142,78.708,78.681,0.82306001]
[1770945302393,0.820142,78.708,78.683,0.82306001]
[1770945302799,40.42,78.707,78.683,0.82306001]
[1770945302971,0.820142,78.706,78.683,0.82306001]
[1770945303172,0.820142,78.712,78.683,0.82306001]
[1770945303372,0.820142,78.711,78.683,0.82306001]
[1770945303601,41.240142,78.71,78.683,0.82306001]
[1770945303776,0.820142,78.709,78.683,0.82306001]
[1770945305306,0.820142,78.709,78.685,0.82306001]
[1770945307402,0.820142,78.709,78.687,0.82306001]
[1770945308404,0.820142,78.709,78.689,0.82306001]
[1770945308599,40.48,78.708,78.689,0.82306001]
[1770945308793,12.70236729,78.726,78.691,0.82306001]
[1770945308997,0.820142,78.728,78.691,0.82306001]
[1770945309304,0.820142,78.728,78.701,0.82306001]
[1770945309305,40.48,78.728,78.701,0.82306001]
[1770945309880,41.300142,78.728,78.701,0.82306001]
[1770945310696,40.48,78.728,78.703,0.82306001]
[1770945310892,3.97758772,78.75,78.711,0.82306001]
[1770945311193,25.24,78.751,78.721,0.82306001]
[1770945311397,0.820142,78.75,78.721,0.82306001]
[1770945311700,0.820142,78.748,78.721,0.82306001]
[1770945312787,0.820142,78.748,78.723,0.82306001]
[1770945312983,40.46,78.749,78.723,0.82306001]
[1770945313802,41.280142,78.749,78.723,0.82306001]
[1770945314488,0.820142,78.748,78.723,0.82306001]
[1770945315703,0.820142,78.748,78.725,0.82306001]
[1770945316005,40.46,78.749,78.725,0.82306001]
[1770945316203,0.820142,78.753,78.725,0.82306001]
[1770945316410,41.300142,78.753,78.725,0.82306001]
[1770945317303,40.48,78.753,78.725,0.82306001]
[1770945317510,0.820142,78.752,78.725,0.82306001]
[1770945317714,0.820142,78.752,78.727,0.82306001]
[1770945318295,0.820142,78.759,78.727,0.82306001]
[1770945318613,40.5,78.758,78.73,3.97758772]
[1770945318796,40.5,78.758,78.731,0.82306001]
[1770945319311,0.820142,78.757,78.731,0.82306001]
[1770945319491,0.820142,78.757,78.726,12.70228387]
[1770945319804,0.820142,78.749,78.716,0.82306001]
[1770945320016,0.820142,78.739,78.716,0.82306001]
[1770945320224,0.820142,78.739,78.708,0.82306001]
[1770945320392,0.820142,78.719,78.692,12.70769941]
[1770945320718,0.820142,78.719,78.693,0.82306001]
[1770945320908,3.97758772,78.72,78.693,0.82306001]
[1770945321214,0.820142,78.726,78.693,0.82306001]
[1770945321513,40.48,78.724,78.693,0.82306001]
[1770945321814,40.48,78.725,78.693,0.82306001]
[1770945322410,41.300142,78.725,78.695,0.82306001]
[1770945322914,40.48,78.725,78.695,0.82306001]
[1770945323292,0.820142,78.745,78.701,0.82306001]
[1770945323509,0.820142,78.751,78.721,0.82306001]
[1770945324395,0.820142,78.757,78.723,0.82306001]
[1770945326712,3.97758772,78.75,78.725,0.82306001]
[1770945326915,0.820142,78.749,78.725,0.82306001]
[1770945328008,0.820142,78.749,78.726,12.70228387]
[1770945328212,0.820142,78.749,78.727,0.82306001]
[1770945330202,0.820142,78.749,78.729,0.82306001]
[1770945330520,40.48,78.75,78.729,0.82306001]
[1770945330717,41.32532165,78.75,78.729,0.82306001]
[1770945330909,0.84532165,78.749,78.729,0.82306001]
[1770945331418,0.84532165,78.749,78.724,0.85851115]
[1770945331913,0.84532165,78.739,78.713,0.85851115]
[1770945332333,0.84532165,78.739,78.714,12.70422034]
[1770945332501,0.84532165,78.737,78.714,12.70422034]
[1770945332704,0.84532165,78.737,78.701,31.7655446]
[1770945332705,0.84532165,78.737,78.703,0.85851115]
[1770945332936,0.84532165,78.729,78.703,0.85851115]
[1770945337224,40.54,78.736,78.704,12.70583451]
[1770945337225,3.97758772,78.72,78.704,12.70583451]
[1770945337530,0.81761117,78.719,78.685,0.85874195]
[1770945337740,0.81761117,78.709,78.683,12.70916505]
[1770945339232,0.81761117,78.699,78.672,13.56974459]
[1770945339434,0.81761117,78.699,78.673,0.85874195]
[1770945341719,0.81761117,78.699,78.674,13.56942146]
[1770945341928,0.81761117,78.697,78.674,13.56942146]
[1770945342115,0.81761117,78.697,78.675,0.85874195]
[1770945342316,40.62,78.698,78.675,0.85874195]
[1770945343222,0.81761117,78.697,78.675,0.85874195]
[1770945343831,0.81761117,78.697,78.674,12.71067951]
[1770945344624,0.81761117,78.697,78.667,0.85874195]
[1770945344625,0.81761117,78.689,78.665,12.71198518]
[1770945345221,0.81761117,78.679,78.665,12.71198518]
[1770945345746,0.81761117,78.679,78.655,12.71361685]
[1770945346835,0.81761117,78.669,78.65,0.2]
[1770945347339,0.81761117,78.667,78.65,0.2]
[1770945349353,0.81761117,78.667,78.651,12.71439651]
[1770945349644,3.97758772,78.67,78.65,1.05874195]
[1770945350153,3.97758772,78.67,78.651,12.71439651]
[1770945350324,0.81761117,78.676,78.652,0.85874195]
[1770945350325,40.76,78.673,78.652,0.85874195]
[1770945350520,40.76,78.677,78.652,0.85874195]
[1770945350737,3.97758772,78.68,78.652,0.85874195]
[1770945350941,13.52591875,78.689,78.652,0.85874195]
[1770945351137,13.52591875,78.689,78.65,4.17758772]
[1770945351138,40.76,78.686,78.654,0.85874195]
[1770945351336,3.97758772,78.69,78.654,0.85874195]
[1770945351531,40.76,78.693,78.654,0.85874195]
[1770945352040,3.97758772,78.69,78.654,0.85874195]
[1770945352637,40.76,78.695,78.654,0.85874195]
[1770945353543,3.97758772,78.69,78.656,0.85874195]
[1770945354547,0.81761117,78.689,78.656,0.85874195]
[1770945354850,0.81761117,78.679,78.656,0.85874195]
[1770945355234,3.97758772,78.67,78.656,0.85874195]
[1770945355459,0.81761117,78.699,78.658,0.85874195]
[1770945356228,0.81761117,78.705,78.658,0.85874195]
[1770945356556,2.47215037,98.964,78.681,0.85874195]
[1770945356557,3.97758772,78.72,78.681,0.85874195]
[1770945356947,5.43490369,78.728,78.681,0.85874195]
[1770945357252,0.81761117,78.728,78.681,0.85874195]
[1770945357434,12.70179984,78.729,78.682,44.48285503]
[1770945357634,12.70179984,78.729,78.683,0.85874195]
[1770945358054,0.81761117,78.719,78.683,0.85874195]
[1770945358753,3.97758772,78.72,78.683,0.85874195]
[1770945359261,0.81761117,78.728,78.683,0.85874195]
[1770945359757,0.81761117,78.728,78.68,3.97758772]
[1770945359758,3.97758772,78.72,78.685,0.85874195]
[1770945359959,0.81761117,78.719,78.685,0.85874195]
[1770945361856,0.81761117,78.719,78.687,0.88353216]
[1770945362239,0.8203863,78.718,78.687,0.88353216]
[1770945362431,3.97758772,78.7,78.679,54.24]
[1770945362640,0.8203863,78.699,78.671,0.88353216]
[1770945363543,0.8203863,78.699,78.674,0.88353216]
[1770945364255,0.8203863,78.699,78.66,3.97838393]
[1770945364256,0.8203863,78.679,78.65,1.08353216]
[1770945364458,0.8203863,78.669,78.64,0.2]
[1770945365050,0.8203863,78.669,78.641,0.88353216]
[1770945365643,0.8203863,78.667,78.641,0.88353216]
[1770945368045,0.8203863,78.676,78.643,0.88353216]
[1770945368243,11.48596063,78.69,78.651,0.88353216]
[1770945368755,0.8203863,78.696,78.651,0.88353216]
[1770945370556,40.7,78.702,78.65,10.66557433]
[1770945370557,0.8203863,78.689,78.653,0.88353216]
[1770945371866,0.8203863,78.689,78.655,0.88353216]
[1770945373879,0.8203863,78.689,78.657,0.88353216]
[1770945376147,0.8203863,78.689,78.659,0.88353216]
[1770945377244,0.8203863,78.689,78.661,0.88353216]
[1770945377746,0.8203863,78.746,78.663,0.88353216]
[1770945377941,0.8203863,78.746,78.662,5.36086188]
[1770945377942,0.8203863,78.719,78.671,0.88353216]
[1770945378555,0.8203863,78.709,78.671,0.88353216]
[1770945380145,0.8203863,78.709,78.672,44.48850924]
[1770945380341,0.8203863,78.709,78.673,0.88353216]
[1770945381865,10.66557433,78.72,78.672,44.48850924]
[1770945381866,0.8203863,78.72,78.681,0.88353216]
[1770945382074,0.8203863,78.729,78.681,0.88353216]
[1770945382864,0.8203863,78.727,78.683,0.88353216]
[1770945384769,0.8203863,78.725,78.685,0.88353216]
[1770945385873,0.8203863,78.719,78.687,0.88353216]
[1770945386957,0.8203863,78.719,78.689,0.88353216]
[1770945387478,0.8203863,78.709,78.68,54.3]
[1770945387776,0.8203863,78.709,78.681,12.70954868]
[1770945388958,12.70518879,78.708,78.68,54.3]
[1770945389180,0.8203863,78.707,78.68,54.3]
[1770945390685,0.8203863,78.707,78.679,12.70987175]
[1770945391384,40.72,78.715,78.671,0.88148939]
[1770945391385,0.83473911,78.699,78.671,0.88148939]
[1770945391589,0.83473911,78.699,78.672,0.88148939]
[1770945394492,12.70551165,78.706,78.661,54.4]
[1770945394493,0.86163728,78.697,78.663,0.8306906]
[1770945396265,0.86163728,78.729,78.681,0.8306906]
[1770945396469,0.86163728,78.727,78.681,0.8306906]
[1770945397294,0.86163728,78.725,78.683,0.8306906]
[1770945397993,0.86163728,78.725,78.685,0.8306906]
[1770945398375,0.86163728,78.725,78.687,0.8306906]
[1770945399893,0.86163728,78.725,78.688,12.70841805]
[1770945400095,0.86163728,78.725,78.689,0.8306906]
[1770945400480,0.86163728,78.719,78.689,0.8306906]
[1770945401494,0.86163728,78.709,78.683,12.70913511]
[1770945401694,0.86163728,78.709,78.677,0.8306906]
[1770945401695,0.86163728,78.709,78.678,12.70992151]
[1770945401898,0.86163728,78.708,78.678,12.70992151]
[1770945402099,0.86163728,78.689,78.664,0.8306906]
[1770945402397,0.86163728,78.689,78.664,12.71227301]
[1770945402897,0.86163728,78.679,78.658,13.54389213]
[1770945403081,0.86163728,78.679,78.658,12.71320153]
[1770945403984,0.86163728,78.667,78.64,0.2]
[1770945404192,0.86163728,78.659,78.64,0.2]
[1770945406294,0.86163728,78.649,78.63,0.2]
[1770945406482,0.86163728,78.639,78.614,0.8306906]
[1770945406896,40.78,78.651,78.61,0.2]
[1770945406897,0.86163728,78.629,78.61,0.2]
[1770945408586,3.9762857,78.62,78.61,0.2]
[1770945408910,0.86163728,78.619,78.6,0.2]
[1770945409405,0.86163728,78.626,78.6,13.75328144]
[1770945409900,10.67819748,78.62,78.6,1.0306906]
[1770945410321,10.67819748,78.62,78.6,13.75326997]
[1770945410887,0.86163728,78.619,78.6,0.2]
[1770945413295,0.86163728,78.629,78.602,0.8306906]
[1770945414693,0.86163728,78.629,78.603,12.72216073]
[1770945414891,0.86163728,78.629,78.603,13.55285133]
[1770945415408,0.86163728,78.629,78.604,0.8306906]
[1770945416809,0.86163728,78.628,78.6,0.2]
[1770945417015,0.86163728,78.619,78.6,0.2]
[1770945417705,0.67922196,78.609,78.59,0.2]
[1770945418690,0.67922196,78.609,78.579,12.7260442]
[1770945418691,0.67941283,78.599,78.56,0.2]
[1770945418891,0.27941283,78.579,78.56,0.2]
[1770945419116,10.67819748,78.6,78.562,0.8306906]
[1770945419305,10.67819748,78.61,78.562,0.8306906]
[1770945419514,22.47991591,78.618,78.571,0.8306906]
[1770945419704,0.27991591,78.617,78.571,0.8306906]
[1770945419907,10.67819748,78.62,78.571,0.8306906]
[1770945420220,10.67819748,78.62,78.561,206.08392725]
[1770945420221,10.67819748,78.62,78.581,0.8306906]
[1770945420525,10.67819748,78.64,78.591,0.81488702]
[1770945420713,10.67819748,78.64,78.601,0.81488702]
[1770945420900,0.28089279,78.647,78.603,0.81488702]
[1770945421327,10.67819748,78.64,78.603,0.81488702]
[1770945421701,0.28136606,78.639,78.603,0.81488702]
[1770945422121,0.28184404,78.646,78.603,0.81488702]
[1770945422630,10.67819748,78.64,78.603,0.81488702]
[1770945422930,10.96004152,78.64,78.605,0.81488702]
[1770945423816,12.71516104,78.647,78.604,44.52699608]
[1770945423817,41.12230496,78.655,78.611,0.81488702]
[1770945424822,12.71161184,78.669,78.623,0.81488702]
[1770945425211,0.28320039,78.668,78.623,0.81488702]
[1770945425419,12.71087941,78.673,78.631,0.81488702]
[1770945425730,0.28320039,78.669,78.631,0.81488702]
[1770945426639,10.94982811,78.66,78.632,13.53235573]
[1770945426813,10.94982811,78.66,78.633,0.81488702]
[1770945428145,10.66618749,78.66,78.635,0.81488702]
[1770945428933,0.28407714,78.667,78.635,0.81488702]
[1770945429225,10.66618749,78.66,78.636,12.71682181]
[1770945429542,10.66618749,78.66,78.637,0.81488702]
[1770945430637,40.84,78.673,78.637,0.81488702]
[1770945432040,41.1257591,78.673,78.639,0.81488702]
[1770945432238,10.66618749,78.67,78.639,0.81488702]
[1770945432619,40.84,78.673,78.639,0.81488702]
[1770945433125,10.95236937,78.68,78.64,10.66618749]
[1770945433432,10.95236937,78.68,78.641,0.81488702]
[1770945433739,0.28618188,78.68,78.641,0.81488702]
[1770945433936,40.84,78.687,78.642,44.50548053]
[1770945434141,0.28658455,78.698,78.651,0.81488702]
[1770945434443,0.28699108,78.706,78.661,0.81488702]
[1770945435035,0.1,78.71,78.671,0.81488702]
[1770945435237,4.07787067,78.71,78.671,0.81488702]
[1770945435441,0.1,78.71,78.681,0.81488702]
[1770945436131,0.1,78.71,78.683,0.81488702]
[1770945436435,0.1,78.71,78.684,0.81488702]
[1770945437019,12.69885274,78.748,78.701,0.81488702]
[1770945437222,10.65041227,78.74,78.701,0.81488702]
[1770945438326,10.65041227,78.74,78.703,0.81488702]
[1770945438647,11.03908465,78.74,78.703,0.81488702]
[1770945439245,10.65041227,78.74,78.703,0.81488702]
[1770945439448,0.38912909,78.758,78.711,0.81488702]
[1770945439829,10.65041227,78.75,78.711,0.81488702]
[1770945440245,10.65041227,78.75,78.713,0.81488702]
[1770945441246,10.65041227,78.74,78.713,0.81488702]
[1770945441428,0.38998853,78.739,78.713,0.81488702]
[1770945441625,0.38998853,78.739,78.706,67.08537256]
[1770945441928,0.38998853,78.719,78.688,0.81488702]
[1770945442335,40.72,78.738,78.671,0.81488702]
[1770945442336,10.65041227,78.7,78.671,0.81488702]
[1770945442630,10.65041227,78.72,78.671,0.81488702]
[1770945442941,23.35380475,78.72,78.681,0.81488702]
[1770945443150,10.65041227,78.72,78.681,0.81488702]
[1770945443345,0.39085664,78.709,78.681,0.81488702]
[1770945444633,0.39085664,78.709,78.682,12.70938715]
[1770945444833,10.65041227,78.71,78.683,0.81488702]
[1770945445147,10.65041227,78.75,78.701,0.81488702]
[1770945445340,10.65041227,78.75,78.711,0.81488702]
[1770945445548,0.3916944,78.753,78.711,0.81488702]
[1770945445746,10.65041227,78.76,78.711,0.81488702]
[1770945446139,0.3916944,78.749,78.711,0.81488702]
[1770945446335,10.65041227,78.74,78.711,0.81488702]
[1770945446638,11.04250572,78.74,78.712,12.70454314]
[1770945446949,10.65041227,78.73,78.705,54.32]
[1770945447142,0.39209345,78.729,78.697,12.70690787]
[1770945447342,0.39250908,78.719,78.687,0.81488702]
[1770945448248,10.65041227,78.71,78.686,12.70874107]
[1770945448450,0.39291799,78.709,78.686,12.70874107]
[1770945448653,0.39291799,78.709,78.679,0.81488702]
[1770945448869,0.39291799,78.707,78.679,0.81488702]
[1770945449157,0.39291799,78.707,78.68,12.70971021]
[1770945449456,0.39291799,78.707,78.68,13.52459723]
[1770945449632,12.70512772,78.709,78.681,0.81488702]
[1770945449836,10.65041227,78.71,78.681,0.81488702]
[1770945450057,0.39332988,78.715,78.681,0.81488702]
[1770945450857,11.04451493,78.71,78.681,0.81488702]
[1770945451039,11.04451493,78.71,78.682,12.70938715]
[1770945451239,11.04451493,78.71,78.683,0.89065011]
[1770945452666,0.39488132,78.709,78.682,12.70938715]
[1770945453167,0.39488132,78.709,78.678,0.89065011]
[1770945453561,0.39564308,78.707,78.678,0.89065011]
[1770945454067,0.39564308,78.689,78.657,12.71342664]
[1770945454360,0.39564308,78.689,78.658,0.89131768]
[1770945454866,10.65041227,78.7,78.66,10.65041227]
[1770945455168,0.39601316,78.711,78.672,44.48850924]
[1770945455368,0.39601316,78.711,78.673,0.89131768]
[1770945455747,0.39637347,78.719,78.673,0.89131768]
[1770945456266,10.65041227,78.71,78.673,0.89131768]
[1770945456646,11.04715452,78.71,78.673,0.89131768]
[1770945457065,0.39674225,78.709,78.673,0.89131768]
[1770945457264,0.39710174,78.698,78.663,0.89131768]
[1770945457570,0.39710174,78.698,78.665,0.89131768]
[1770945459166,0.39710174,78.698,78.667,0.89131768]
[1770945459382,10.65041227,78.7,78.667,0.89131768]
[1770945460956,0.39779499,78.706,78.667,0.89131768]
[1770945461973,0.39779499,78.706,78.669,0.89131768]
[1770945465474,10.65041227,78.7,78.671,0.89131768]
[1770945465779,0.39980727,78.689,78.664,0.89131768]
[1770945465951,0.39980727,78.689,78.661,12.71278015]
[1770945466157,0.39980727,78.689,78.657,0.89131768]
[1770945467273,0.40046522,78.687,78.658,13.6045827]
[1770945467485,0.40046522,78.687,78.659,0.89131768]
[1770945467664,3.97996005,78.68,78.659,0.89131768]
[1770945467859,0.40046522,78.687,78.659,0.89131768]
[1770945468572,3.97996005,78.69,78.659,0.89131768]
[1770945468973,10.65922644,78.69,78.659,0.89131768]
[1770945469491,10.65922644,78.69,78.661,0.89131768]
[1770945470378,11.06062402,78.69,78.661,0.89131768]
[1770945470588,0.40139758,78.689,78.661,0.89131768]
[1770945471466,0.40139758,78.689,78.663,0.89131768]
[1770945472775,0.40139758,78.689,78.665,0.89131768]
[1770945473782,0.40139758,78.689,78.664,12.71229533]
[1770945473983,10.65922644,78.69,78.665,0.89131768]
[1770945474171,0.40228629,78.695,78.665,0.89131768]
[1770945475387,0.40228629,78.695,78.658,31.78316255]
[1770945475388,10.65922644,78.69,78.667,0.89131768]
[1770945476883,0.40316802,78.699,78.667,0.89131768]
[1770945477268,31.7623647,78.71,78.658,31.78316255]
[1770945477269,0.40345333,78.689,78.661,12.71278015]
[1770945477477,31.7623647,78.71,78.662,0.89131768]
[1770945477478,11.06267977,78.7,78.662,0.89131768]
[1770945477675,12.70664176,78.699,78.662,0.89131768]
[1770945478687,0.40373734,78.706,78.662,0.89131768]
[1770945479271,11.06324229,78.72,78.671,0.89131768]
[1770945479479,0.40401585,78.717,78.671,0.89131768]
[1770945479876,10.65922644,78.71,78.671,0.89131768]
[1770945480484,0.40457138,78.709,78.671,0.89131768]
[1770945480684,0.40457138,78.699,78.671,0.89131768]
[1770945480884,10.65922644,78.69,78.665,0.88102521]
[1770945481584,10.65922644,78.69,78.667,0.88102521]
[1770945481786,0.40483998,78.689,78.662,12.71251839]
[1770945481993,0.40483998,78.679,78.655,12.71366879]
[1770945482196,0.40483998,78.679,78.655,13.594694]
[1770945482381,0.40483998,78.679,78.656,0.88102521]
[1770945483293,0.40483998,78.679,78.657,12.71342664]
[1770945483868,10.65922644,78.67,78.648,0.88102521]
[1770945484096,0.40536326,78.669,78.641,0.88102521]
[1770945484390,10.65922644,78.67,78.641,0.88102521]
[1770945484391,4.61729252,78.679,78.641,0.88102521]
[1770945484589,0.40562177,78.678,78.641,0.88102521]
[1770945486590,10.66299419,78.67,78.643,0.88102521]
[1770945486795,11.06913093,78.67,78.643,0.88102521]
[1770945488189,10.66299419,78.67,78.643,0.88102521]
[1770945489987,10.66299419,78.67,78.644,12.7155282]
[1770945490298,0.40690113,78.669,78.645,0.88102521]
[1770945490998,0.40715214,78.659,78.625,0.88102521]
[1770945491175,0.40715214,78.649,78.625,0.88102521]
[1770945491677,3.9817074,78.65,78.625,0.88102521]
[1770945491883,40.7,78.658,78.625,0.88102521]
[1770945492203,0.40739421,78.664,78.627,0.88102521]
[1770945492800,13.1178144,78.678,78.631,0.88102521]
[1770945492990,3.9817074,78.68,78.641,0.88102521]
[1770945493490,0.40786913,78.679,78.641,0.88102521]
[1770945494506,0.40811351,78.669,78.642,12.71585158]
[1770945494995,0.40811351,78.659,78.632,0.88102521]
[1770945496605,40.7,78.666,78.617,0.88102521]
[1770945496606,0.40859694,78.649,78.617,0.88102521]
[1770945497277,0.40859694,78.649,78.618,0.88102521]
[1770945498516,0.40859694,78.649,78.619,12.7195716]
[1770945498688,0.40859694,78.649,78.62,0.88102521]
[1770945499398,0.40929848,78.629,78.6,12.72264631]
[1770945499702,0.40929848,78.629,78.601,0.88102521]
[1770945499906,3.9817074,78.62,78.601,0.88102521]
[1770945501208,3.9817074,78.62,78.601,13.60344953]
[1770945502407,3.9817074,78.62,78.586,31.81219649]
[1770945502408,0.409967,78.619,78.591,0.88102521]
[1770945502712,0.409967,78.619,78.592,12.72382304]
[1770945503006,0.409967,78.619,78.593,0.88102521]
[1770945503198,0.409967,78.619,78.595,0.88102521]
[1770945503396,3.9817074,78.62,78.595,0.88102521]
[1770945505490,3.9817074,78.62,78.58,0.2]
[1770945505491,3.9817074,78.61,78.589,0.88102521]
[1770945506293,3.9817074,78.61,78.59,1.08102521]
[1770945506487,3.9817074,78.63,78.592,0.88102521]
[1770945506898,0.41079934,78.629,78.592,0.88102521]
[1770945507512,0.41079934,78.629,78.594,0.88102521]
[1770945508092,3.9817074,78.65,78.601,0.88102521]
[1770945508291,40.72,78.659,78.611,0.88102521]
[1770945508504,0.41120428,78.658,78.611,0.88102521]
[1770945509513,4.39310593,78.68,78.631,0.88102521]
[1770945509714,0.41139853,78.679,78.631,0.88102521]
[1770945509918,4.61729252,78.679,78.631,0.88102521]
[1770945510102,0.41139853,78.678,78.631,0.88102521]
[1770945511013,4.61729252,78.679,78.631,0.88102521]
[1770945511310,4.39144545,78.69,78.641,0.82662627]
[1770945511809,13.1181561,78.688,78.643,0.82662627]
[1770945512014,0.40973805,78.687,78.643,0.82662627]
[1770945512715,3.9817074,78.69,78.643,0.82662627]
[1770945513500,0.40812957,78.708,78.661,0.8980613]
[1770945513809,0.40812957,78.715,78.671,0.8980613]
[1770945514196,3.9817074,78.71,78.671,0.8980613]
[1770945514394,0.4075949,78.699,78.663,0.8980613]
[1770945515595,0.4075949,78.699,78.664,12.71229533]
[1770945515899,0.40706777,78.689,78.653,12.7140732]
[1770945516205,10.65681432,78.68,78.654,0.8980613]
[1770945517106,11.06336229,78.69,78.654,0.8980613]
[1770945517704,11.06336229,78.69,78.656,0.8980613]
[1770945518497,0.40552542,78.698,78.656,0.8980613]
[1770945520210,0.40552542,78.698,78.657,44.49699326]
[1770945520416,0.40552542,78.698,78.658,0.8980613]
[1770945520915,0.40451939,78.705,78.661,0.8980613]
[1770945521221,51.35681432,78.71,78.661,0.8980613]
[1770945521420,10.65681432,78.72,78.681,0.8980613]
[1770945521628,11.06084042,78.72,78.681,0.8980613]
[1770945521832,0.4040261,78.719,78.681,0.8980613]
[1770945522135,11.06084042,78.71,78.681,0.8980613]
[1770945522625,0.40355362,78.709,78.682,13.60744845]
[1770945525014,0.40259348,78.699,78.671,0.8980613]
[1770945526720,0.40259348,78.699,78.672,0.8980613]
[1770945527106,0.40259348,78.699,78.662,0.8980613]
[1770945527532,0.40120205,78.701,78.662,0.8980613]
[1770945527733,10.65681432,78.7,78.662,0.8980613]
[1770945528036,0.40120205,78.699,78.662,0.8980613]
[1770945528711,0.40075081,78.697,78.664,0.8980613]
[1770945531633,0.39943438,78.703,78.666,0.8980613]
[1770945531808,10.65681432,78.7,78.666,0.8980613]
[1770945532216,0.39943438,78.703,78.666,0.8980613]
[1770945533535,0.39943438,78.703,78.668,0.8980613]
[1770945535035,4.37656792,78.7,78.67,0.8980613]
[1770945535216,0.39816939,78.699,78.67,0.8980613]
[1770945535917,0.39774767,78.706,78.67,0.8980613]
[1770945536913,0.39774767,78.706,78.671,12.71116421]
[1770945537236,0.39774767,78.706,78.672,0.8980613]
[1770945537438,0.39693098,78.704,78.672,0.8980613]
[1770945537613,0.39693098,78.699,78.672,0.8980613]
[1770945539935,0.39613759,78.708,78.674,0.8980613]
[1770945541454,0.39497065,78.689,78.651,0.81325735]
[1770945541624,0.39497065,78.679,78.652,0.81325735]
[1770945541824,0.39497065,78.675,78.652,0.81325735]
[1770945542124,0.39497065,78.675,78.63,3.97839853]
[1770945542125,0.39497065,78.669,78.638,13.52975573]
[1770945542339,12.7102661,78.677,78.639,0.81325735]
[1770945542547,4.61729252,78.687,78.638,44.50774434]
[1770945542548,3.97839853,78.69,78.641,0.81325735]
[1770945542727,12.70825655,78.689,78.641,0.81325735]
[1770945544230,12.70825655,78.689,78.651,0.81325735]
[1770945544544,44.65839853,78.69,78.651,0.81325735]
[1770945544746,0.39385337,78.705,78.661,0.81325735]
[1770945544922,12.70532988,78.708,78.661,0.81325735]
[1770945545245,0.3934994,78.689,78.661,0.81325735]
[1770945546319,0.3934994,78.689,78.662,12.71261854]
[1770945547028,0.3934994,78.689,78.662,13.52587589]
[1770945547842,0.3934994,78.689,78.663,0.81325735]
[1770945549343,0.3934994,78.689,78.665,0.81325735]
[1770945549720,12.70718241,78.696,78.665,0.81325735]
[1770945549941,40.66,78.697,78.665,0.81325735]
[1770945551723,3.97989031,78.69,78.667,0.81325735]
[1770945552124,4.37129407,78.69,78.667,0.81325735]
[1770945553236,0.39106926,78.689,78.662,0.81325735]
[1770945555249,0.39106926,78.689,78.664,0.81325735]
[1770945557051,40.66,78.697,78.664,0.81325735]
[1770945557232,0.38945281,78.696,78.666,0.81325735]
[1770945558540,0.38945281,78.696,78.667,12.71181054]
[1770945558753,0.38945281,78.696,78.668,0.81325735]
[1770945561736,0.38822437,78.695,78.67,0.81325735]
[1770945563950,0.38763182,78.693,78.67,0.81325735]
[1770945565035,40.66,78.697,78.672,0.81325735]
[1770945565639,12.70712615,78.696,78.672,0.81325735]
[1770945565852,0.38705638,78.695,78.672,0.81325735]
[1770945566060,12.7074491,78.694,78.672,0.81325735]
[1770945566749,13.0942231,78.694,78.672,0.81325735]
[1770945566950,12.7074491,78.694,78.672,0.81325735]
[1770945567154,0.386774,78.689,78.664,0.81325735]
[1770945567656,0.386774,78.689,78.659,12.71298235]
[1770945567868,0.38649361,78.669,78.641,0.81325735]
[1770945568057,0.38649361,78.669,78.643,0.81325735]
[1770945569134,12.71164895,78.668,78.643,0.81325735]
[1770945569335,3.97989031,78.66,78.643,0.81325735]
[1770945570660,40.9,78.679,78.645,0.88125443]
[1770945571951,12.70841805,78.688,78.645,0.88125443]
[1770945572269,40.92,78.687,78.645,0.88125443]
[1770945572453,0.38489213,78.686,78.645,0.88125443]
[1770945572764,4.61729252,78.698,78.647,0.88125443]
[1770945572765,0.38489213,78.679,78.647,0.88125443]
[1770945572958,0.38489213,78.669,78.642,12.71581868]
[1770945573464,3.97989031,78.66,78.641,0.88125443]
[1770945574549,3.97989031,78.66,78.641,13.59719891]
[1770945574753,40.92,78.667,78.642,0.84396589]
[1770945574950,13.09609647,78.666,78.642,0.84396589]
[1770945576566,0.3836256,78.659,78.626,0.84396589]
[1770945576772,12.71229533,78.664,78.618,0.84396589]
[1770945576773,0.3836256,78.649,78.618,0.84396589]
[1770945578769,0.3836256,78.649,78.619,12.7195716]
[1770945579071,0.3836256,78.649,78.62,0.84396589]
[1770945579259,3.97989031,78.65,78.62,0.84396589]
[1770945579847,3.97989031,78.66,78.622,0.84396589]
[1770945581158,3.97989031,78.66,78.624,0.84396589]
[1770945581978,0.3824405,78.659,78.624,0.84396589]
[1770945582165,0.3824405,78.659,78.603,53.18]
[1770945582166,0.3824405,78.649,78.615,0.84396589]
[1770945582355,3.97989031,78.64,78.615,0.84396589]
[1770945583251,3.97989031,78.63,78.61,12.72102785]